bitfinex-derivatives/quotes_ETHF0:USTF0_20251107
["timestamp","ask_amount","ask_price","bid_price","bid_amount"]
[1762542755810,0.15055816,3434.5,3434.1,0.00436847]
[1762542756011,0.2421,3434.2,3434.1,0.00436847]
[1762542756311,0.2421,3434.2,3433.3,2.716]
[1762542756312,0.1484,3433.2,3433.0,0.47219]
[1762542756701,0.1484,3433.8,3433.7,0.4721]
[1762542757409,0.00434617,3434.1,3433.4,0.00436847]
[1762542757410,0.00434617,3434.1,3434.0,0.47206]
[1762542758101,0.04861819,3434.5,3434.4,0.47201]
[1762542758301,0.1484,3435.6,3435.5,0.47186]
[1762542758506,0.1484,3435.6,3435.4,0.47187]
[1762542759212,0.1484,3435.6,3435.2,0.47625847]
[1762542759409,0.15095734,3435.6,3435.2,0.00644982]
[1762542759607,0.15095734,3435.6,3435.2,0.47833982]
[1762542759810,0.39305734,3435.6,3435.5,0.47186]
[1762542760004,0.15095734,3435.6,3435.5,0.47186]
[1762542762320,0.1484,3436.8,3436.7,0.47169]
[1762542762509,0.1484,3436.8,3436.6,0.4717]
[1762542763210,0.15086716,3436.8,3436.6,0.4717]
[1762542766912,0.2312,3436.5,3435.2,0.00644982]
[1762542767111,0.2312,3436.5,3436.4,0.47173]
[1762542767720,0.15086716,3436.8,3436.7,0.47169]
[1762542768014,0.31448762,3437.3,3437.2,0.47162]
[1762542768215,0.31448762,3437.3,3437.2,0.47164]
[1762542768517,0.2312,3436.9,3436.8,0.47168]
[1762542768715,0.1479,3436.8,3435.2,0.23493093]
[1762542768922,0.15084635,3436.8,3435.2,0.23493093]
[1762542769132,0.38204635,3436.8,3436.7,0.47169]
[1762542770522,0.00294635,3436.8,3436.7,0.47169]
[1762542771919,0.38204635,3436.8,3436.7,0.47169]
[1762542772219,0.00294635,3436.8,3436.7,0.47169]
[1762542772424,0.00294635,3436.8,3436.7,0.71239]
[1762542773119,0.00294635,3436.8,3436.7,0.47169]
[1762542774023,0.38204635,3436.8,3436.7,0.47169]
[1762542775527,0.00294635,3436.8,3436.7,0.71239]
[1762542777026,0.368,3437.2,3437.1,0.47164]
[1762542777221,0.6027,3437.2,3437.1,0.47164]
[1762542777823,0.368,3437.2,3437.1,0.70584]
[1762542778028,0.37134728,3437.2,3437.1,0.70584]
[1762542778622,0.60604728,3437.2,3437.1,0.47164]
[1762542779231,0.37134728,3437.2,3437.1,0.47164]
[1762542779729,0.37134728,3437.2,3437.1,0.70584]
[1762542780322,0.08328762,3437.3,3437.2,0.70582]
[1762542781124,1.18814473,3439.5,3438.4,0.47146]
[1762542781125,0.2347,3438.5,3438.4,0.47146]
[1762542781322,0.23783997,3438.5,3438.4,0.47387732]
[1762542782421,0.00313997,3438.5,3438.4,0.47387732]
[1762542783031,0.23783997,3438.5,3438.4,0.00241732]
[1762542783330,0.2347,3437.9,3437.0,0.1236]
[1762542783633,0.2347,3437.9,3437.8,0.47154]
[1762542784233,0.2347,3437.9,3437.8,0.47415007]
[1762542784433,0.2347,3437.9,3437.8,0.00261007]
[1762542784925,0.2347,3437.9,3437.8,0.47415007]
[1762542787337,0.00436847,3438.2,3437.8,0.47415007]
[1762542787338,0.00436847,3438.2,3437.8,0.00261007]
[1762542787632,0.00436847,3438.2,3438.1,0.4715]
[1762542787839,0.23906847,3438.2,3438.1,0.4715]
[1762542788533,0.00436847,3438.2,3438.1,0.4715]
[1762542789433,0.23906847,3438.2,3438.1,0.4715]
[1762542790939,0.71055847,3438.2,3438.1,0.4715]
[1762542791140,0.23906847,3438.2,3438.1,0.4715]
[1762542792137,0.71055847,3438.2,3438.1,0.4715]
[1762542792340,0.2347,3437.6,3437.5,0.00436847]
[1762542792538,0.2347,3437.6,3437.5,0.47595847]
[1762542793236,0.3737,3437.5,3437.4,0.47159]
[1762542793444,0.3737,3437.5,3437.4,0.4749724]
[1762542793748,0.84529,3437.5,3437.4,0.4749724]
[1762542794338,0.84529,3437.5,3437.4,0.0033824]
[1762542795142,0.3737,3437.5,3437.4,0.4749824]
[1762542795544,0.2347,3437.9,3437.8,0.47154]
[1762542795935,0.139,3438.0,3437.9,0.47153]
[1762542796133,1.5250032,3438.2,3438.1,0.4715]
[1762542796134,0.00436847,3438.2,3438.1,0.4715]
[1762542796338,0.00436847,3438.2,3438.1,0.7057]
[1762542797743,0.00436847,3438.2,3437.9,0.47153]
[1762542798045,0.00436847,3438.2,3438.0,0.47151]
[1762542798046,0.2347,3438.1,3438.0,0.47151]
[1762542799136,0.00436847,3438.2,3437.4,8.9443824]
[1762542799137,0.3737,3438.0,3437.9,0.47153]
[1762542799336,0.70623,3437.9,3437.4,0.0033824]
[1762542799640,0.2347,3437.7,3437.6,0.47157]
[1762542800050,0.00436847,3438.2,3438.1,0.4715]
[1762542800242,0.00436847,3438.2,3438.1,0.7057]
[1762542802946,0.00436847,3438.2,3438.1,0.4715]
[1762542803338,0.00436847,3438.2,3437.6,4.894]
[1762542803645,0.2347,3438.1,3438.0,0.47152]
[1762542803945,0.00436847,3438.2,3438.1,0.4715]
[1762542804742,0.00436847,3438.2,3438.1,0.7057]
[1762542804943,0.23906847,3438.2,3438.1,0.4715]
[1762542805342,0.2347,3438.1,3438.0,0.47152]
[1762542806046,0.23906847,3438.2,3438.0,0.47151]
[1762542806243,0.23906847,3438.2,3438.1,0.4715]
[1762542807242,0.00436847,3438.2,3438.1,0.6983]
[1762542807444,0.23206847,3438.2,3438.1,0.4715]
[1762542807751,0.2277,3437.7,3437.6,1.02144325]
[1762542807942,0.1456,3438.0,3437.7,0.47156]
[1762542807943,0.47154,3437.9,3437.7,0.47156]
[1762542808145,0.3733,3437.5,3437.4,0.0033824]
[1762542808344,0.84489,3437.5,3437.4,0.0033824]
[1762542808647,0.2277,3437.2,3437.1,0.00436847]
[1762542808842,0.2277,3437.2,3437.1,0.47600847]
[1762542809037,0.2277,3437.2,3437.1,0.00436847]
[1762542809249,0.1456,3437.5,3437.4,0.4716]
[1762542809450,0.1456,3437.5,3437.4,0.47465219]
[1762542809749,0.3733,3437.5,3437.4,0.47465219]
[1762542809949,0.3733,3437.5,3437.4,0.00305219]
[1762542810147,0.3733,3437.5,3437.4,0.47465219]
[1762542810345,0.84489,3437.5,3437.4,0.00305219]
[1762542810745,0.3733,3437.5,3437.4,0.00305219]
[1762542811252,0.84489,3437.5,3437.4,0.00305219]
[1762542811749,0.3733,3437.5,3437.4,0.47465219]
[1762542812046,0.1456,3437.5,3437.4,0.47465219]
[1762542812238,0.2277,3437.8,3437.7,0.47156]
[1762542812439,0.00436847,3438.2,3438.1,0.4715]
[1762542813549,0.23206847,3438.2,3438.0,0.47152]
[1762542813751,0.6992,3438.1,3438.0,0.47152]
[1762542814050,0.3733,3438.0,3437.9,0.47153]
[1762542817948,0.00436847,3438.2,3438.1,0.4715]
[1762542818645,0.00436847,3438.2,3438.1,0.6983]
[1762542819144,0.00436847,3438.2,3438.1,0.4715]
[1762542819754,0.00436847,3438.2,3438.1,0.6983]
[1762542819952,0.23206847,3438.2,3438.1,0.4715]
[1762542820358,0.00436847,3438.2,3438.1,0.4715]
[1762542820848,0.2262,3437.9,3437.4,1.55687485]
[1762542821054,0.368,3437.5,3437.4,0.47465219]
[1762542822053,0.1418,3437.5,3437.4,0.47465219]
[1762542822551,0.368,3437.5,3437.4,0.47465219]
[1762542822753,0.83959,3437.5,3437.4,0.00305219]
[1762542823652,0.368,3437.5,3437.4,0.47465219]
[1762542823848,0.1418,3437.5,3437.4,0.47465219]
[1762542824052,0.2262,3437.8,3437.7,0.47156]
[1762542824354,0.47156,3437.7,3437.4,0.00305219]
[1762542824553,0.368,3437.5,3437.4,0.47465219]
[1762542825352,0.83959,3437.5,3437.4,0.00305219]
[1762542825962,0.368,3437.5,3437.4,0.47465219]
[1762542826151,0.83959,3437.5,3437.4,0.00305219]
[1762542826352,1.49362559,3437.5,3437.4,0.00305219]
[1762542826656,0.69783,3437.2,3437.1,0.00436847]
[1762542826956,0.69783,3437.2,3436.7,0.01103]
[1762542826957,0.69788,3436.8,3436.7,0.01103]
[1762542827356,0.368,3436.0,3435.6,1.55382266]
[1762542827555,0.2262,3435.7,3435.6,0.00262661]
[1762542827750,0.2262,3435.7,3435.6,0.47447661]
[1762542828559,0.14910267,3436.0,3435.9,0.47181]
[1762542828762,0.2262,3435.7,3435.6,0.00262661]
[1762542829257,0.2262,3435.7,3435.6,0.47447661]
[1762542829560,0.69803,3435.7,3435.6,0.00262661]
[1762542829754,0.14910267,3436.0,3435.6,0.00262661]
[1762542829950,0.14910267,3436.0,3435.9,0.47181]
[1762542830155,0.00730267,3436.0,3435.9,0.71951]
[1762542831055,0.1418,3437.0,3436.6,0.4717]
[1762542831254,0.2262,3436.9,3436.8,0.47168]
[1762542831558,0.83965,3437.0,3436.8,0.47167]
[1762542831860,0.3710289,3437.0,3436.9,0.47167]
[1762542832161,0.0030289,3437.0,3436.9,0.71937]
[1762542832561,0.0030289,3437.0,3436.9,0.47167]
[1762542832867,0.4746789,3437.0,3436.9,0.47167]
[1762542833259,0.0030289,3437.0,3436.9,0.47167]
[1762542834159,0.0030289,3437.0,3436.2,0.131]
[1762542834363,0.1418,3436.8,3436.6,0.4717]
[1762542834560,0.368,3436.8,3436.7,0.4717]
[1762542835468,0.0030289,3437.0,3436.9,0.47167]
[1762542835953,0.7008789,3437.0,3436.9,0.47167]
[1762542836155,0.7008789,3437.0,3436.8,0.47167]
[1762542836364,0.47167,3436.9,3436.8,0.47167]
[1762542836756,0.7229889,3437.0,3436.9,0.47167]
[1762542837268,0.47167,3436.9,3436.8,0.47168]
[1762542837464,0.71997,3436.9,3436.8,0.47168]
[1762542837762,0.47169,3436.8,3436.6,0.4717]
[1762542838066,0.2483,3436.6,3436.5,0.47171]
[1762542838359,0.61623,3436.5,3435.7,1.55382266]
[1762542838559,0.61622,3436.5,3435.7,1.55382266]
[1762542838756,0.47174,3436.4,3435.7,1.55382266]
[1762542838963,0.1445,3436.5,3436.3,0.47175]
[1762542839163,0.3928,3436.5,3436.4,0.47174]
[1762542839376,0.1445,3436.8,3435.7,1.55382266]
[1762542839666,0.6191889,3437.0,3435.8,1.55382266]
[1762542840167,0.6191889,3437.0,3436.7,0.47168]
[1762542840361,0.0030289,3437.0,3436.9,0.70957]
[1762542841565,0.1475289,3437.0,3436.6,0.47171]
[1762542841769,0.1475289,3437.0,3436.5,0.47172]
[1762542841972,0.2483,3436.6,3436.4,0.47174]
[1762542842171,0.47172,3436.5,3436.0,0.1316]
[1762542842375,0.47172,3436.5,3435.6,2.19997447]
[1762542842376,0.47174,3436.4,3436.3,0.47175]
[1762542842572,0.1475289,3437.0,3435.8,1.55382266]
[1762542842874,0.2483,3436.8,3436.7,0.47168]
[1762542843081,0.2483,3436.9,3436.8,0.47168]
[1762542843571,0.0030289,3437.0,3436.9,0.70957]
[1762542846177,0.0030289,3437.0,3436.9,0.47167]
[1762542846373,0.0030289,3437.0,3436.9,0.70957]
[1762542851972,0.1418,3438.0,3437.8,0.47154]
[1762542852172,0.3901,3438.0,3437.9,0.47153]
[1762542852573,0.1418,3438.0,3436.9,1.55382266]
[1762542852880,0.3928,3437.5,3437.4,0.4716]
[1762542853072,0.86439,3437.5,3437.4,0.4716]
[1762542853269,0.86439,3437.5,3436.9,0.00436847]
[1762542853270,0.00436847,3437.6,3437.5,0.70949]
[1762542853676,0.86439,3437.5,3437.4,0.4716]
[1762542853879,0.3928,3437.5,3437.4,0.4716]
[1762542854083,0.61609,3437.5,3436.9,0.00436847]
[1762542854284,0.2483,3437.4,3436.9,0.00436847]
[1762542854478,0.1445,3437.0,3436.9,0.00436847]
[1762542854678,0.1445,3437.0,3436.9,0.47603847]
[1762542855193,0.86445,3437.0,3436.9,0.00436847]
[1762542855592,0.86445,3437.0,3436.9,0.47603847]
[1762542855993,0.3928,3437.0,3436.9,0.47603847]
[1762542857088,0.86445,3437.0,3436.9,0.00436847]
[1762542857287,0.86445,3437.0,3436.9,0.47603847]
[1762542857495,0.86445,3437.0,3436.9,0.00436847]
[1762542859594,1.52359258,3437.0,3436.9,0.00436847]
[1762542860394,1.52359258,3437.0,3436.5,0.36609565]
[1762542860395,0.72002,3436.6,3436.5,0.36609565]
[1762542861593,0.2483,3436.6,3436.5,0.36609565]
[1762542862094,0.72001,3436.6,3436.5,0.36609565]
[1762542862295,0.2483,3436.6,3436.5,0.36609565]
[1762542862592,0.2483,3436.9,3436.8,0.47167]
[1762542862898,0.1445,3437.0,3436.9,0.47167]
[1762542863094,0.3928,3437.0,3436.9,0.47167]
[1762542863298,0.1445,3437.0,3436.2,1.55819113]
[1762542863493,0.3928,3437.0,3436.9,0.47167]
[1762542863898,0.5055,3437.1,3437.0,0.47165]
[1762542864192,0.5055,3437.1,3437.0,0.70955]
[1762542864796,0.5055,3437.1,3437.0,0.83515]
[1762542865700,0.5055,3437.1,3437.0,0.70955]
[1762542867090,0.5055,3437.1,3437.0,0.83555]
[1762542867299,0.5055,3437.1,3437.0,2.38937266]
[1762542867799,0.00436847,3437.6,3437.5,0.70529]
[1762542868694,0.00436847,3437.6,3437.5,0.82659]
[1762542870895,0.00436847,3437.6,3436.5,2.58288385]
[1762542871197,0.00436847,3437.6,3435.6,0.00262661]
[1762542871198,0.1463,3436.0,3435.6,0.00262661]
[1762542871500,0.2379,3435.7,3434.5,0.126]
[1762542871805,0.1463,3435.5,3435.1,0.47191]
[1762542872100,0.65866951,3435.5,3435.4,0.47187]
[1762542872298,0.00436847,3435.6,3435.4,0.2337]
[1762542872607,0.0070167,3435.6,3435.5,0.2337]
[1762542873500,0.0070167,3435.6,3435.5,8.2337]
[1762542873898,0.95717574,3436.6,3436.5,0.47172]
[1762542874197,0.95717574,3436.6,3436.4,0.47173]
[1762542874404,0.2379,3436.6,3436.4,0.47173]
[1762542874903,0.239943,3436.6,3436.4,0.47173]
[1762542875101,0.002043,3436.6,3436.4,0.47173]
[1762542876199,0.473763,3436.6,3436.3,0.47174]
[1762542876396,0.473763,3436.6,3436.4,0.47173]
[1762542876910,0.002043,3436.6,3435.6,0.135]
[1762542877102,0.002043,3436.6,3436.4,0.47173]
[1762542877303,0.47174,3436.4,3435.6,0.135]
[1762542877502,0.002043,3436.6,3436.5,0.47172]
[1762542877701,0.9638034,3436.6,3436.5,0.47172]
[1762542877899,0.70963,3436.5,3436.2,0.47176]
[1762542878104,0.2379,3436.5,3435.6,0.135]
[1762542878303,0.70966,3436.3,3436.2,0.47176]
[1762542878498,0.47176,3436.3,3435.6,0.135]
[1762542878702,0.2379,3436.2,3436.1,0.47178]
[1762542879107,0.47174,3436.4,3436.3,0.47175]
[1762542879304,0.002043,3436.6,3436.5,0.47172]
[1762542879707,0.239943,3436.6,3436.5,0.47172]
[1762542880213,0.002043,3436.6,3436.5,0.84042]
[1762542881510,0.5071,3438.0,3437.9,0.47153]
[1762542881703,1.23765796,3438.0,3437.9,0.47153]
[1762542881908,0.5071,3438.0,3437.9,0.47153]
[1762542882314,0.2336,3438.1,3438.0,0.47152]
[1762542882514,0.23683253,3438.1,3438.0,0.47447615]
[1762542882713,0.00323253,3438.1,3438.0,0.47447615]
[1762542883815,0.00323253,3438.1,3438.0,0.84217615]
[1762542885109,0.23683253,3438.1,3438.0,0.00295615]
[1762542885416,0.00323253,3438.1,3438.0,0.37065615]
[1762542886015,0.00323253,3438.1,3438.0,0.00295615]
[1762542887220,0.00323253,3438.1,3438.0,0.23585615]
[1762542887419,0.00323253,3438.1,3438.0,0.00295615]
[1762542888119,0.00323253,3438.1,3438.0,0.47447615]
[1762542888922,0.00323253,3438.1,3438.0,0.84217615]
[1762542889413,0.70833253,3438.1,3437.7,0.00436847]
[1762542889616,0.2336,3437.6,3437.5,0.47158]
[1762542890318,0.47158,3437.6,3436.0,0.1348]
[1762542890620,0.4716,3437.4,3436.7,0.00436847]
[1762542890822,0.47163,3437.2,3436.9,0.47167]
[1762542891022,0.2336,3437.0,3436.9,0.47167]
[1762542891215,0.2336,3436.9,3436.8,0.47168]
[1762542891514,0.2336,3436.8,3436.7,0.47604847]
[1762542892622,0.70527,3437.0,3436.8,0.47168]
[1762542892808,0.2336,3436.9,3436.8,0.47168]
[1762542893515,0.47164,3437.1,3436.8,0.2329]
[1762542893719,0.4716,3437.4,3436.7,0.00436847]
[1762542894016,0.1408,3437.5,3436.8,0.47168]
[1762542894017,0.2336,3437.2,3436.8,0.47168]
[1762542894210,0.47167,3437.0,3436.9,0.47167]
[1762542894724,0.2336,3437.1,3437.0,0.47165]
[1762542895418,0.2336,3437.1,3436.7,0.00436847]
[1762542895720,0.70524,3437.2,3437.1,0.47164]
[1762542895921,0.2336,3437.2,3437.1,0.47164]
[1762542896220,0.47158,3437.5,3437.4,0.4716]
[1762542896411,0.2413,3437.4,3437.0,0.1399]
[1762542896612,0.47163,3437.2,3436.7,0.00436847]
[1762542896812,0.71294,3437.1,3437.0,0.47164]
[1762542897210,0.2413,3437.1,3437.0,0.47164]
[1762542897415,0.71294,3437.1,3437.0,0.47164]
[1762542897723,0.1367,3437.5,3436.7,0.00436847]
[1762542897922,0.71294,3437.2,3437.1,0.47163]
[1762542898420,0.71296,3437.1,3437.0,0.47164]
[1762542898622,0.2413,3436.8,3436.7,0.47605847]
[1762542898818,0.71298,3436.8,3436.7,0.47605847]
[1762542899516,0.71298,3436.8,3436.7,0.00436847]
[1762542900321,0.2413,3436.8,3436.7,0.47605847]
[1762542900520,0.2413,3437.1,3436.8,0.47167]
[1762542900718,0.71297,3436.9,3436.8,0.47167]
[1762542901020,2.699,3437.3,3437.2,0.47163]
[1762542901221,2.9403,3437.3,3436.7,0.00436847]
[1762542901417,0.47164,3437.2,3437.0,0.47165]
[1762542901619,0.2413,3437.1,3436.7,0.00436847]
[1762542901824,0.2413,3437.1,3437.0,0.47165]
[1762542902924,2.699,3437.3,3437.2,0.47163]
[1762542903223,3.42373729,3437.3,3437.2,0.47163]
[1762542903421,0.2413,3437.0,3436.7,0.00436847]
[1762542903620,0.47178,3436.1,3435.0,2.20641277]
[1762542903823,0.2413,3436.1,3436.0,0.47179]
[1762542904216,0.71308,3436.1,3436.0,0.47179]
[1762542904421,0.4718,3436.0,3435.9,0.4718]
[1762542904821,0.2413,3436.1,3436.0,0.47179]
[1762542905025,0.71309,3436.0,3435.9,0.4747457]
[1762542905226,0.2413,3436.0,3435.9,0.4747457]
[1762542905620,0.71309,3436.0,3435.9,0.0029357]
[1762542906029,0.2413,3436.0,3435.9,0.4747457]
[1762542906235,0.24566847,3436.3,3436.2,0.47176]
[1762542906719,0.00436847,3436.3,3436.2,0.72016]
[1762542907522,0.24566847,3436.3,3436.2,0.47176]
[1762542909034,0.71741847,3436.3,3436.2,0.47176]
[1762542909333,0.24566847,3436.3,3436.2,0.47176]
[1762542909829,0.00436847,3436.3,3436.2,0.47176]
[1762542910231,2.699,3437.3,3437.1,0.47164]
[1762542910431,0.1367,3437.5,3437.3,0.47161]
[1762542910632,0.2413,3437.4,3437.3,0.47161]
[1762542910835,0.2413,3437.2,3437.1,0.47164]
[1762542912132,0.71294,3437.1,3437.0,0.47164]
[1762542912337,0.14106847,3437.5,3436.5,0.1399]
[1762542912530,0.2413,3436.9,3436.8,0.47167]
[1762542912728,0.2413,3437.3,3436.5,0.1399]
[1762542912935,0.2413,3436.9,3436.8,0.47168]
[1762542913133,0.2413,3437.2,3437.1,0.47163]
[1762542913524,0.4716,3437.4,3437.3,0.4716]
[1762542913727,0.4716,3437.4,3436.5,0.1399]
[1762542913728,0.47163,3437.2,3436.5,0.1399]
[1762542913932,0.71916761,3437.4,3436.9,0.47166]
[1762542914130,0.2413,3436.6,3436.0,0.1399]
[1762542914333,0.2413,3436.5,3436.0,0.1399]
[1762542914530,0.71303,3436.5,3436.4,0.47174]
[1762542914729,0.71303,3436.5,3436.0,0.1399]
[1762542914730,0.47174,3436.4,3436.0,0.1399]
[1762542914929,0.2413,3436.3,3436.2,0.47176]
[1762542915237,0.1367,3437.0,3435.9,0.0029357]
[1762542915435,0.2413,3436.5,3436.4,0.47174]
[1762542916037,0.2413,3436.3,3436.2,0.47176]
[1762542916241,0.1367,3437.0,3436.4,0.47172]
[1762542916427,0.47175,3436.4,3436.3,0.47175]
[1762542916632,0.71305,3436.4,3436.3,0.47175]
[1762542917237,0.2413,3436.4,3436.3,0.47175]
[1762542917432,1.191853,3436.6,3436.5,0.47172]
[1762542917632,1.433153,3436.6,3436.5,0.47172]
[1762542918039,0.2413,3436.5,3436.4,0.47173]
[1762542918241,0.961443,3436.5,3436.4,0.47173]
[1762542918539,0.71305,3436.4,3436.3,0.47174]
[1762542918728,0.961443,3436.4,3436.3,0.47174]
[1762542918931,0.2413,3436.4,3436.3,0.47174]
[1762542919140,0.84979,3436.0,3435.9,0.0029357]
[1762542919334,1.21918103,3436.0,3435.9,0.4747457]
[1762542919531,0.961443,3436.0,3435.9,0.0029357]
[1762542919729,0.47175,3436.3,3436.1,0.47177]
[1762542919935,1.08328783,3436.4,3436.3,0.47175]
[1762542920133,0.72108411,3436.5,3436.0,0.1399]
[1762542920341,0.47171,3436.6,3436.0,0.1399]
[1762542920535,0.47178,3436.1,3435.9,0.0029357]
[1762542920742,0.2413,3436.0,3435.9,0.4747357]
[1762542920942,0.2413,3436.0,3435.9,0.4747457]
[1762542921341,0.378,3436.0,3435.9,0.0029357]
[1762542921636,0.2413,3436.0,3435.9,0.4747357]
[1762542922033,0.0691,3436.5,3435.9,0.4747357]
[1762542922228,0.96244453,3436.4,3436.3,0.47175]
[1762542922433,1.04914473,3436.8,3436.0,0.1399]
[1762542922638,0.2413,3436.6,3436.5,0.47172]
[1762542922831,0.2413,3436.4,3436.3,0.47174]
[1762542923036,0.2413,3436.3,3435.9,0.0029357]
[1762542923231,0.2413,3436.2,3436.1,0.47178]
[1762542923436,0.2413,3436.0,3435.9,0.4747357]
[1762542923943,0.2413,3436.4,3436.3,0.47174]
[1762542924343,1.04914473,3436.9,3435.9,0.0029357]
[1762542924344,0.84220823,3436.6,3436.5,0.47172]
[1762542924539,0.72108779,3436.7,3436.0,0.1399]
[1762542924745,0.2413,3437.1,3437.0,0.47165]
[1762542925055,0.84217612,3437.1,3437.0,0.85995]
[1762542925238,0.2413,3437.2,3437.1,0.47163]
[1762542925544,0.0691,3437.0,3436.0,0.1399]
[1762542925740,1.1927303,3436.9,3436.0,0.1399]
[1762542926046,0.84218762,3436.8,3436.0,0.1399]
[1762542926243,0.7210503,3436.7,3436.6,0.47171]
[1762542926447,0.2413,3436.8,3436.7,0.47168]
[1762542926648,0.8423994,3436.9,3436.8,0.47168]
[1762542927347,1.04914473,3437.3,3436.9,0.227]
[1762542927542,0.84249552,3437.2,3437.1,0.47164]
[1762542928045,1.06809552,3437.2,3436.5,0.1411]
[1762542928237,0.69727,3436.9,3436.6,0.47169]
[1762542928437,0.72132528,3436.8,3436.5,0.1411]
[1762542928744,0.2256,3436.9,3436.8,0.47168]
[1762542929736,0.72134445,3436.9,3436.8,0.69868]
[1762542929936,1.04914473,3437.4,3436.5,0.1411]
[1762542930148,1.06813591,3437.3,3437.2,0.47162]
[1762542930847,0.69723,3437.2,3437.1,0.47162]
[1762542931146,0.47164,3437.1,3437.0,0.47164]
[1762542931349,1.06813591,3437.1,3437.0,0.47164]
[1762542931548,1.06814234,3437.1,3437.0,0.47164]
[1762542931848,0.84254234,3437.1,3437.0,0.83974]
[1762542932247,0.84254234,3437.1,3436.5,0.1411]
[1762542932248,0.2256,3437.0,3436.5,0.1411]
[1762542932449,0.2256,3437.0,3436.8,0.47167]
[1762542932450,1.41862287,3436.9,3436.8,0.47167]
[1762542932649,0.84254234,3436.9,3436.8,0.69867]
[1762542932841,0.72135287,3436.9,3436.5,0.1411]
[1762542933042,0.69724,3437.1,3437.0,0.47165]
[1762542933247,1.53996198,3437.1,3437.0,0.47165]
[1762542933648,0.69728,3436.9,3436.8,0.47167]
[1762542933944,0.34679729,3436.9,3436.0,0.1399]
[1762542934139,0.47176,3436.2,3436.0,0.47179]
[1762542934450,0.2256,3436.1,3436.0,0.47179]
[1762542934646,1.06849006,3436.3,3436.2,0.47176]
[1762542934949,0.4717,3436.7,3436.5,0.47171]
[1762542935148,0.12117794,3436.7,3436.6,0.47171]
[1762542935340,0.84284122,3436.7,3436.6,0.69871]
[1762542935546,1.04914473,3437.4,3436.5,0.1411]
[1762542935741,0.2256,3437.1,3437.0,0.47165]
[1762542935946,0.94721421,3437.1,3437.0,0.47165]
[1762542936146,0.84279882,3437.1,3437.0,0.47165]
[1762542936744,0.84279882,3437.1,3437.0,0.3681]
[1762542936745,0.72148739,3437.1,3437.0,0.3681]
[1762542936950,0.72147747,3437.4,3437.0,0.1411]
[1762542937150,0.84266885,3437.3,3437.2,0.69862]
[1762542937352,1.31427885,3437.3,3437.1,0.47164]
[1762542937661,0.00436847,3437.5,3437.4,0.6986]
[1762542937858,0.72574219,3437.5,3437.4,0.6986]
[1762542938049,0.72574219,3437.5,3437.4,0.227]
[1762542938359,0.72574219,3437.5,3436.5,0.47172]
[1762542938360,0.2256,3436.6,3436.5,0.47172]
[1762542938553,0.72137372,3436.9,3436.7,0.47169]
[1762542938856,0.72137372,3436.8,3436.7,0.69869]
[1762542939058,0.47165,3437.0,3436.7,0.69868]
[1762542939250,0.72137372,3436.9,3436.7,0.69869]
[1762542939556,0.72137372,3436.8,3436.6,0.4717]
[1762542939852,0.2256,3437.1,3435.9,0.0029357]
[1762542940059,1.77009773,3437.0,3436.3,0.47174]
[1762542940255,0.07966847,3437.5,3436.0,0.1411]
[1762542940256,0.72508888,3436.9,3436.8,0.69868]
[1762542940449,0.72511874,3437.3,3436.8,0.227]
[1762542940649,0.84364307,3437.2,3436.5,0.1411]
[1762542940954,1.31528307,3437.1,3436.5,0.1411]
[1762542941150,1.19676874,3437.0,3436.5,0.1411]
[1762542941353,0.95221874,3436.9,3436.8,0.47168]
[1762542942044,0.72512271,3437.2,3437.1,0.71304]
[1762542942250,0.84365118,3437.2,3437.1,0.47164]
[1762542942752,0.72512271,3437.2,3437.1,0.47164]
[1762542942952,0.72512271,3437.2,3437.1,0.71304]
[1762542943157,0.72512271,3437.2,3437.0,0.1373]
[1762542943158,0.00436847,3437.5,3437.0,0.1373]
[1762542943351,0.00436847,3437.5,3437.4,0.713]
[1762542943550,0.72938439,3437.5,3437.4,0.713]
[1762542943956,0.00436847,3437.5,3437.4,0.713]
[1762542946553,0.6251264,3437.8,3437.4,8.0]
[1762542946757,10.48,3439.7,3437.0,0.1373]
[1762542946758,0.94959478,3438.6,3438.5,0.71285]
[1762542946949,0.47135,3439.2,3438.7,0.47142]
[1762542947148,0.2271,3438.7,3438.0,0.0865]
[1762542947352,0.2271,3438.3,3438.2,0.47148]
[1762542947650,0.47169,3436.8,3435.0,0.0865]
[1762542947847,0.1426,3436.0,3435.6,0.00436173]
[1762542948054,0.2271,3435.7,3435.6,0.00436173]
[1762542948352,0.22947141,3435.7,3435.6,0.00436173]
[1762542948549,0.1426,3435.5,3435.1,0.4719]
[1762542948758,0.2271,3435.2,3435.0,0.00357154]
[1762542948956,0.1426,3435.5,3432.8,1.2237508]
[1762542948957,0.2271,3435.1,3433.0,0.0705]
[1762542949154,0.47195,3434.9,3434.1,0.47204]
[1762542949451,0.1426,3435.0,3433.2,0.22758724]
[1762542949657,0.00436173,3434.4,3434.3,0.69952]
[1762542950050,0.00436173,3434.4,3434.3,0.70220901]
[1762542950257,0.00436173,3434.4,3434.3,0.47470901]
[1762542952057,0.00436173,3434.4,3434.3,0.70220901]
[1762542952257,1.73e-06,3434.4,3434.3,0.47470901]
[1762542953260,0.3697,3433.8,3433.7,0.00436173]
[1762542953754,0.14260173,3434.4,3433.7,0.00436173]
[1762542954157,0.14260173,3434.4,3434.2,0.47203]
[1762542954356,1.73e-06,3434.4,3434.2,0.47203]
[1762542955451,1.73e-06,3434.4,3434.2,8.47203]
[1762542956951,0.00237141,3435.7,3434.4,0.0979]
[1762542957154,0.1479,3435.6,3434.4,0.0979]
[1762542957365,0.1479,3435.6,3435.4,0.47187]
[1762542957853,0.61975,3435.6,3433.8,0.0865]
[1762542958062,0.00436825,3435.0,3433.8,0.0865]
[1762542958252,0.00436825,3435.0,3434.9,0.71354]
[1762542959552,0.15226825,3435.0,3434.9,0.47194]
[1762542960652,0.00436825,3435.0,3434.9,0.71354]
[1762542961355,0.15226825,3435.0,3434.9,0.47194]
[1762542961758,0.38726825,3435.0,3434.9,0.47194]
[1762542962157,0.15226825,3435.0,3434.9,0.47194]